fUSD/lending_fUSD_20250513
["ID","MTS","AMOUNT","RATE_DAILY","PERIOD"]
[360923278,1747149042090,-400.0,0.00010958,2]
[360923280,1747149042099,-400.0,0.00010958,2]
[360923282,1747149042108,-251.0,0.00010958,2]
[360923284,1747149042117,-1305.87,0.00010958,2]
[360923286,1747149042126,-575.3,0.00010958,2]
[360923288,1747149042136,-400.0,0.00010958,2]
[360923290,1747149042145,-400.0,0.00010958,2]
[360923293,1747149042155,-295.83020891,0.00010958,2]
[360923295,1747149042164,-2565.37,0.00010958,2]
[360923296,1747149042174,-526.14953042,0.00010958,2]
[360923298,1747149042184,-400.0,0.00010958,2]
[360923300,1747149042194,-450.67459584,0.00010958,2]
[360923302,1747149042203,-400.0,0.00010958,2]
[360923304,1747149042213,-400.0,0.00010958,2]
[360923307,1747149042223,-400.0,0.00010958,2]
[360923309,1747149042234,-400.0,0.00010958,2]
[360923310,1747149042244,-511.49006714,0.00010958,2]
[360923313,1747149042254,-400.0,0.00010958,2]
[360923315,1747149042263,-1365.19,0.00010958,2]
[360923317,1747149042273,-851.71,0.00010958,2]
[360923319,1747149042282,-400.0,0.00010958,2]
[360923321,1747149042291,-489.37748451,0.00010958,2]
[360923323,1747149042302,-1655.18,0.00010958,2]
[360923325,1747149042311,-1537.75,0.00010958,2]
[360923326,1747149042321,-474.33,0.00010958,2]
[360923328,1747149042330,-500.4,0.00010958,2]
[360923330,1747149042339,-502.76381463,0.00010958,2]
[360923332,1747149042348,-400.0,0.00010958,2]
[360923334,1747149042358,-400.0,0.00010958,2]
[360923336,1747149042368,-440.44,0.00010958,2]
[360923338,1747149042377,-970.42,0.00010958,2]
[360923340,1747149042387,-947.99,0.00010958,2]
[360923342,1747149042397,-400.0,0.00010958,2]
[360923344,1747149042407,-400.0,0.00010958,2]
[360923346,1747149042416,-407.17,0.00010958,2]
[360923348,1747149042426,-400.0,0.00010958,2]
[360923350,1747149042436,-450.91649884,0.00010958,2]
[360923352,1747149042446,-1286.23,0.00010958,2]
[360923354,1747149042455,-659.22,0.00010958,2]
[360923356,1747149042465,-400.0,0.00010958,2]
[360923358,1747149042474,-819.22,0.00010958,2]
[360923373,1747149042690,-503.898652,0.00010958,2]
[360923374,1747149042731,-5003.075718,0.00010958,2]
[360923375,1747149042741,-407.81,0.00010958,2]
[360923376,1747149042750,-965.89,0.00010958,2]
[360923377,1747149042760,-828.93,0.00010958,2]
[360923378,1747149042769,-400.0,0.00010958,2]
[360923379,1747149042778,-400.0,0.00010958,2]
[360923380,1747149042787,-2466.19,0.00010958,2]
[360923381,1747149042796,-1475.71,0.00010958,2]
[360923382,1747149042807,-400.0,0.00010958,2]
[360923383,1747149042816,-400.0,0.00010958,2]
[360923384,1747149042826,-1484.52,0.00010958,2]
[360923385,1747149042835,-517.8,0.00010958,2]
[360923387,1747149042844,-400.0,0.00010958,2]
[360923388,1747149042854,-324.52470692,0.00010958,2]
[360923390,1747149042863,-400.0,0.00010958,2]
[360923392,1747149042872,-1647.48,0.00010958,2]
[360923394,1747149042881,-400.0,0.00010958,2]
[360923396,1747149042891,-455.78,0.00010958,2]
[360923398,1747149042900,-400.0,0.00010958,2]
[360923400,1747149042910,-692.0,0.00010958,2]
[360923402,1747149042924,-793.959132,0.00010958,2]
[360923404,1747149042933,-400.0,0.00010958,2]
[360923406,1747149042942,-585.34,0.00010958,2]
[360923408,1747149042951,-400.0,0.00010958,2]
[360923410,1747149042962,-1662.34,0.00010958,2]
[360923412,1747149042971,-400.0,0.00010958,2]
[360923415,1747149042980,-500.0,0.00010958,2]
[360923418,1747149042990,-765.79,0.00010958,2]
[360923420,1747149042999,-400.0,0.00010958,2]
[360923422,1747149043009,-526.92683979,0.00010958,2]
[360923424,1747149043019,-2273.53,0.00010958,2]
[360923426,1747149043028,-2186.2,0.00010958,2]
[360923429,1747149043038,-536.62,0.00010958,2]
[360923432,1747149043047,-400.0,0.00010958,2]
[360923434,1747149043059,-400.0,0.00010958,2]
[360923437,1747149043068,-400.0,0.00010958,2]
[360923440,1747149043078,-400.0,0.00010958,2]
[360923442,1747149043087,-400.0,0.00010958,2]
[360923444,1747149043096,-400.0,0.00010958,2]
[360923446,1747149043105,-940.09,0.00010958,2]
[360923448,1747149043114,-400.0,0.00010958,2]
[360923450,1747149043123,-400.0,0.00010958,2]
[360923452,1747149043134,-2018.11,0.00010958,2]
[360923454,1747149043143,-400.0,0.00010958,2]
[360923456,1747149043152,-400.0,0.00010958,2]
[360923458,1747149043162,-852.07,0.00010958,2]
[360923460,1747149043171,-594.07,0.00010958,2]
[360923462,1747149043180,-605.8,0.00010958,2]
[360923464,1747149043190,-400.0,0.00010958,2]
[360923466,1747149043199,-400.0,0.00010958,2]
[360923468,1747149043208,-1062.88,0.00010958,2]
[360923470,1747149043219,-400.0,0.00010958,2]
[360923472,1747149043228,-609.18,0.00010958,2]
[360923474,1747149043237,-852.52,0.00010958,2]
[360923476,1747149043246,-3728.22,0.00010958,2]
[360923478,1747149043255,-1168.92,0.00010958,2]
[360923480,1747149043265,-4508.82,0.00010958,2]
[360923482,1747149043274,-400.0,0.00010958,2]
[360923484,1747149043283,-400.0,0.00010958,2]
[360923486,1747149043292,-726.09,0.00010958,2]
[360923488,1747149043303,-400.0,0.00010958,2]
[360923490,1747149043312,-636.57,0.00010958,2]
[360923491,1747149043321,-2405.74,0.00010958,2]
[360923493,1747149043330,-539.22,0.00010958,2]
[360923496,1747149043340,-567.8,0.00010958,2]
[360923498,1747149043350,-1976.96,0.00010958,2]
[360923499,1747149043359,-1346.77,0.00010958,2]
[360923501,1747149043369,-400.0,0.00010958,2]
[360923503,1747149043378,-400.0,0.00010958,2]
[360923506,1747149043387,-400.0,0.00010958,2]
[360923508,1747149043397,-400.0,0.00010958,2]
[360923510,1747149043406,-1380.75,0.00010958,2]
[360923511,1747149043415,-400.0,0.00010958,2]
[360923514,1747149043424,-400.0,0.00010958,2]
[360923516,1747149043434,-15902.66611471,0.00010958,2]
[360923559,1747149044065,-11585.03388529,0.00010958,2]
[360923561,1747149044074,-2787.44,0.00010958,2]
[360923563,1747149044084,-539.05,0.00010958,2]
[360923565,1747149044093,-717.24,0.00010958,2]
[360923567,1747149044103,-388.14433197,0.00010958,2]
[360923569,1747149044112,-400.0,0.00010958,2]
[360923571,1747149044121,-400.0,0.00010958,2]
[360923573,1747149044130,-400.0,0.00010958,2]
[360923575,1747149044140,-428.93,0.00010958,2]
[360923577,1747149044149,-400.0,0.00010958,2]
[360923579,1747149044158,-457.67,0.00010958,2]
[360923581,1747149044167,-876.73,0.00010958,2]
[360923583,1747149044176,-418.39,0.00010958,2]
[360923585,1747149044186,-400.0,0.00010958,2]
[360923587,1747149044196,-400.0,0.00010958,2]
[360923589,1747149044205,-549.18,0.00010958,2]
[360923591,1747149044214,-400.0,0.00010958,2]
[360923593,1747149044223,-471.75,0.00010958,2]
[360923595,1747149044232,-400.0,0.00010958,2]
[360923597,1747149044242,-542.34,0.00010958,2]
[360923599,1747149044251,-400.0,0.00010958,2]
[360923601,1747149044260,-457.63,0.00010958,2]
[360923603,1747149044269,-929.42,0.00010958,2]
[360923605,1747149044279,-400.0,0.00010958,2]
[360923607,1747149044288,-400.0,0.00010958,2]
[360923609,1747149044297,-400.0,0.00010958,2]
[360923611,1747149044307,-1529.01,0.00010958,2]
[360923613,1747149044316,-619.09,0.00010958,2]
[360923614,1747149044325,-728.46,0.00010958,2]
[360923616,1747149044334,-783.88,0.00010958,2]
[360923618,1747149044344,-1227.13,0.00010958,2]
[360923620,1747149044353,-737.42,0.00010958,2]
[360923622,1747149044362,-400.0,0.00010958,2]
[360923624,1747149044371,-400.0,0.00010958,2]
[360923626,1747149044381,-2167.47,0.00010958,2]
[360923628,1747149044390,-1353.49,0.00010958,2]
[360923630,1747149044399,-400.0,0.00010958,2]
[360923632,1747149044409,-260.33216174,0.00010958,2]
[360923634,1747149044418,-1418.33,0.00010958,2]
[360923636,1747149044427,-400.0,0.00010958,2]
[360923638,1747149044436,-777.36,0.00010958,2]
[360923640,1747149044445,-1424.11,0.00010958,2]
[360923642,1747149044455,-400.0,0.00010958,2]
[360923644,1747149044464,-400.0,0.00010958,2]
[360923646,1747149044474,-754.38,0.00010958,2]
[360923648,1747149044484,-253.79766843,0.00010958,2]
[360923650,1747149044493,-400.0,0.00010958,2]
[360923652,1747149044502,-400.0,0.00010958,2]
[360923654,1747149044511,-1676.16,0.00010958,2]
[360923656,1747149044520,-400.0,0.00010958,2]
[360923658,1747149044530,-400.0,0.00010958,2]
[360923660,1747149044539,-400.0,0.00010958,2]
[360923662,1747149044548,-613.87,0.00010958,2]
[360923664,1747149044558,-701.62,0.00010958,2]
[360923666,1747149044567,-957.3,0.00010958,2]
[360923668,1747149044576,-400.0,0.00010958,2]
[360923670,1747149044586,-400.0,0.00010958,2]
[360923672,1747149044595,-400.0,0.00010958,2]
[360923674,1747149044605,-5278.27,0.00010958,2]
[360923676,1747149044614,-400.0,0.00010958,2]
[360923678,1747149044622,-2000.0,0.00010958,2]
[360923679,1747149044631,-477.75,0.00010958,2]
[360923681,1747149044640,-400.0,0.00010958,2]
[360923683,1747149044649,-400.0,0.00010958,2]
[360923685,1747149044658,-846.67,0.00010958,2]
[360923687,1747149044666,-625.86,0.00010958,2]
[360923689,1747149044675,-400.0,0.00010958,2]
[360923691,1747149044685,-619.11,0.00010958,2]
[360923692,1747149044694,-400.0,0.00010958,2]
[360923694,1747149044703,-400.0,0.00010958,2]
[360923696,1747149044712,-400.0,0.00010958,2]
[360923698,1747149044721,-10123.03,0.00010958,2]
[360923699,1747149044730,-400.0,0.00010958,2]
[360923700,1747149044740,-400.0,0.00010958,2]
[360923701,1747149044749,-503.29,0.00010958,2]
[360923702,1747149044758,-400.0,0.00010958,2]
[360923703,1747149044767,-400.0,0.00010958,2]
[360923704,1747149044776,-400.0,0.00010958,2]
[360923705,1747149044785,-400.0,0.00010958,2]
[360923706,1747149044794,-400.0,0.00010958,2]
[360923707,1747149044804,-645.34,0.00010958,2]
[360923708,1747149044813,-400.0,0.00010958,2]
[360923709,1747149044822,-400.0,0.00010958,2]
[360923710,1747149044832,-585.83,0.00010958,2]
[360923711,1747149044841,-4294.98,0.00010958,2]
[360923712,1747149044850,-400.0,0.00010958,2]
[360923713,1747149044859,-551.16,0.00010958,2]
[360923714,1747149044869,-296.4410194,0.00010958,2]
[360923715,1747149044878,-400.0,0.00010958,2]
[360923716,1747149044887,-400.0,0.00010958,2]
[360923717,1747149044897,-400.0,0.00010958,2]
[360923718,1747149044906,-3190.72,0.00010958,2]
[360923719,1747149044916,-2016.51,0.00010958,2]
[360923720,1747149044927,-2169.56,0.00010958,2]
[360923721,1747149045018,-3430.74,0.00010958,2]
[360923722,1747149045027,-400.0,0.00010958,2]
[360923723,1747149045036,-410.76,0.00010958,2]
[360923724,1747149045045,-1610.32,0.00010958,2]
[360923725,1747149045056,-400.0,0.00010958,2]
[360923726,1747149045065,-469.43,0.00010958,2]
[360923727,1747149045075,-2095.27,0.00010958,2]
[360923728,1747149045084,-400.0,0.00010958,2]
[360923729,1747149045094,-400.0,0.00010958,2]
[360923730,1747149045103,-11147.32,0.00010958,2]
[360923731,1747149045112,-653.59,0.00010958,2]
[360923732,1747149045121,-1962.75,0.00010958,2]
[360923733,1747149045130,-4425.71,0.00010958,2]
[360923734,1747149045140,-404.29888981,0.00010958,2]
[360923735,1747149045149,-400.0,0.00010958,2]
[360923736,1747149045158,-592.96,0.00010958,2]
[360923737,1747149045167,-281.81539635,0.00010958,2]
[360923738,1747149045177,-2772.42,0.00010958,2]
[360923739,1747149045185,-400.0,0.00010958,2]
[360923740,1747149045195,-586.0,0.00010958,2]
[360923741,1747149045204,-1306.7,0.00010958,2]
[360923742,1747149045213,-939.84,0.00010958,2]
[360923743,1747149045223,-933.7,0.00010958,2]
[360923744,1747149045232,-728.46,0.00010958,2]
[360923745,1747149045241,-893.14,0.00010958,2]
[360923746,1747149045250,-400.0,0.00010958,2]
[360923747,1747149045260,-1246.48,0.00010958,2]
[360923748,1747149045270,-400.0,0.00010958,2]
[360923749,1747149045279,-662.77,0.00010958,2]
[360923750,1747149045288,-400.0,0.00010958,2]
[360923751,1747149045297,-1080.54,0.00010958,2]
[360923752,1747149045307,-567.63,0.00010958,2]
[360923753,1747149045317,-400.0,0.00010958,2]
[360923754,1747149045326,-400.0,0.00010958,2]
[360923755,1747149045335,-1118.72,0.00010958,2]
[360923756,1747149045345,-400.0,0.00010958,2]
[360923757,1747149045354,-400.0,0.00010958,2]
[360923758,1747149045363,-400.0,0.00010958,2]
[360923759,1747149045372,-400.0,0.00010958,2]
[360923760,1747149045381,-776.58,0.00010958,2]
[360923762,1747149045391,-1254.33,0.00010958,2]
[360923763,1747149045400,-400.0,0.00010958,2]
[360923764,1747149045409,-400.0,0.00010958,2]
[360923765,1747149045419,-603.48,0.00010958,2]
[360923766,1747149045428,-624.52,0.00010958,2]
[360923767,1747149045437,-528.7,0.00010958,2]
[360923768,1747149045446,-400.0,0.00010958,2]
[360923769,1747149045455,-314.12991323,0.00010958,2]
[360923770,1747149045464,-400.0,0.00010958,2]
[360923771,1747149045473,-694.92,0.00010958,2]
[360923772,1747149045483,-470.27,0.00010958,2]
[360923773,1747149045492,-409.35,0.00010958,2]
[360923774,1747149045501,-400.0,0.00010958,2]
[360923775,1747149045511,-531.79,0.00010958,2]
[360923776,1747149045520,-400.0,0.00010958,2]
[360923777,1747149045529,-1232.65,0.00010958,2]
[360923778,1747149045539,-400.0,0.00010958,2]
[360923779,1747149045547,-400.0,0.00010958,2]
[360923780,1747149045557,-400.0,0.00010958,2]
[360923781,1747149045566,-400.0,0.00010958,2]
[360923782,1747149045575,-400.0,0.00010958,2]
[360923783,1747149045584,-400.0,0.00010958,2]
[360923784,1747149045593,-400.0,0.00010958,2]
[360923785,1747149045602,-712.61,0.00010958,2]
[360923786,1747149045611,-400.0,0.00010958,2]
[360923787,1747149045620,-400.0,0.00010958,2]
[360923788,1747149045629,-400.0,0.00010958,2]
[360923789,1747149045638,-1097.91,0.00010958,2]
[360923790,1747149045647,-1369.43,0.00010958,2]
[360923791,1747149045655,-569.44,0.00010958,2]
[360923792,1747149045665,-1963.73,0.00010958,2]
[360923793,1747149045674,-1784.24,0.00010958,2]
[360923794,1747149045683,-400.0,0.00010958,2]
[360923795,1747149045692,-1437.77,0.00010958,2]
[360923796,1747149045701,-762.33,0.00010958,2]
[360923797,1747149045710,-602.6,0.00010958,2]
[360923798,1747149045719,-2351.72,0.00010958,2]
[360923799,1747149045728,-400.0,0.00010958,2]
[360923800,1747149045737,-961.0,0.00010958,2]
[360923801,1747149045746,-951.18,0.00010958,2]
[360923802,1747149045756,-1111.24,0.00010958,2]
[360923803,1747149045765,-322.041906,0.00010958,2]
[360923804,1747149045775,-506.44,0.00010958,2]
[360923805,1747149045784,-400.0,0.00010958,2]
[360923806,1747149045793,-710.08,0.00010958,2]
[360923807,1747149045803,-400.0,0.00010958,2]
[360923808,1747149045812,-99435.58,0.00010958,2]
[360923809,1747149045821,-400.0,0.00010958,2]
[360923810,1747149045830,-400.0,0.00010958,2]
[360923811,1747149045839,-1430.59,0.00010958,2]
[360923812,1747149045848,-464.3843967,0.00010958,2]
[360923813,1747149045857,-400.0,0.00010958,2]
[360923814,1747149045868,-400.0,0.00010958,2]
[360923815,1747149045878,-400.0,0.00010958,2]
[360923816,1747149045887,-415.52,0.00010958,2]
[360923817,1747149045897,-950.78,0.00010958,2]
[360923818,1747149045907,-1858.86,0.00010958,2]
[360923819,1747149045918,-400.0,0.00010958,2]
[360923820,1747149045927,-455.37,0.00010958,2]
[360923821,1747149045936,-834.62,0.00010958,2]
[360923822,1747149045945,-714.6,0.00010958,2]
[360923823,1747149045955,-400.0,0.00010958,2]
[360923824,1747149045966,-795.89,0.00010958,2]
[360923825,1747149045976,-869.45,0.00010958,2]
[360923826,1747149045986,-644.44,0.00010958,2]
[360923827,1747149045998,-411.76,0.00010958,2]
[360923828,1747149046008,-400.0,0.00010958,2]
[360923829,1747149046017,-2676.35,0.00010958,2]
[360923830,1747149046026,-500.0,0.00010959,2]
[360923831,1747149046036,-500.0,0.00010959,2]
[360923832,1747149046046,-500.0,0.00010959,2]
[360923833,1747149046057,-500.0,0.00010959,2]
[360923834,1747149046067,-500.0,0.00010959,2]
[360923835,1747149046076,-500.0,0.00010959,2]
[360923836,1747149046085,-500.0,0.00010959,2]
[360923837,1747149046095,-500.0,0.00010959,2]
[360923838,1747149046105,-332.0,0.00010959,2]
[360923839,1747149046114,-460.24012794,0.00010973,2]
[360923840,1747149046124,-503.22616847,0.00010973,2]
[360923841,1747149046134,-500.0,0.00010973,2]
[360923842,1747149046143,-500.0,0.00010973,2]
[360923843,1747149046152,-500.0,0.00010973,2]
[360923844,1747149046161,-366.53435314,0.00010973,2]
[360923845,1747149046170,-500.0,0.00010973,2]
[360923846,1747149046180,-500.0,0.00010973,2]
[360923847,1747149046189,-500.35340861,0.00010973,2]
[360923848,1747149046199,-501.92231379,0.00010973,2]
[360923849,1747149046208,-245.56792323,0.00010973,2]
[360923850,1747149046218,-500.0,0.00010973,2]
[360923851,1747149046228,-1680.0,0.00010982,2]
[360923853,1747149046237,-150.0,0.00010982,2]
[360923855,1747149046246,-200.0,0.00010982,2]
[360923856,1747149046257,-200.0,0.00010984,2]
[360923857,1747149046267,-200.0,0.00010984,2]
[360923858,1747149046277,-227.10295482,0.00010989,2]
[360923859,1747149046286,-1047.88,0.00010989,2]
[360923860,1747149046296,-400.0,0.00010989,2]
[360923861,1747149046307,-400.0,0.00010989,2]
[360923862,1747149046317,-2237.16,0.00010989,2]
[360923863,1747149046327,-400.0,0.00010989,2]
[360923864,1747149046337,-400.0,0.00010989,2]
[360923865,1747149046346,-1609.83,0.00010989,2]
[360923866,1747149046355,-400.0,0.00010989,2]
[360923867,1747149046365,-1016.23,0.00010989,2]
[360923869,1747149046375,-589.9,0.00010989,2]
[360923870,1747149046384,-802.4,0.00010989,2]
[360923873,1747149046394,-570.17,0.00010989,2]
[360923875,1747149046404,-1974.94,0.00010989,2]
[360923877,1747149046414,-797.61,0.00010989,2]
[360923879,1747149046423,-1703.95,0.00010989,2]
[360923880,1747149046432,-400.0,0.00010989,2]
[360923883,1747149046442,-1509.28,0.00010989,2]
[360923885,1747149046451,-807.31,0.00010989,2]
[360923887,1747149046460,-434.23,0.00010989,2]
[360923889,1747149046472,-500.0,0.00010989,2]
[360923891,1747149046481,-500.0,0.00010989,2]
[360923893,1747149046490,-1593.77,0.00010989,2]
[360923895,1747149046500,-400.0,0.00010989,2]
[360923897,1747149046509,-567.05,0.00010989,2]
[360923899,1747149046518,-400.0,0.00010989,2]
[360923901,1747149046529,-400.0,0.00010989,2]
[360923903,1747149046539,-400.0,0.00010989,2]
[360923905,1747149046548,-400.0,0.00010989,2]
[360923907,1747149046560,-623.76,0.00010989,2]
[360923909,1747149046569,-469.42472891,0.00010989,2]
[360923911,1747149046579,-400.0,0.00010989,2]
[360923913,1747149046588,-2276.08,0.00010989,2]
[360923915,1747149046597,-1488.71,0.00010989,2]
[360923917,1747149046606,-836.89,0.00010989,2]
[360923919,1747149046616,-2603.35,0.00010989,2]
[360923921,1747149046625,-2579.49,0.00010989,2]
[360923923,1747149046634,-2999.8,0.00010989,2]
[360923925,1747149046644,-2024.92,0.00010989,2]
[360923927,1747149046653,-3149.45,0.00010989,2]
[360923929,1747149046663,-1800.62,0.00010989,2]
[360923931,1747149046672,-1297.27,0.00010989,2]
[360923933,1747149046681,-2461.27,0.00010989,2]
[360923935,1747149046690,-1518.31,0.00010989,2]
[360923937,1747149046700,-408.19,0.00010989,2]
[360923939,1747149046709,-325.07424662,0.00010989,2]
[360923942,1747149046719,-482.74,0.00010989,2]
[360923944,1747149046729,-841.66,0.00010989,2]
[360923946,1747149046738,-802.81,0.00010989,2]
[360923948,1747149046747,-879.37,0.00010989,2]
[360923950,1747149046757,-1588.04,0.00010989,2]
[360923952,1747149046766,-400.0,0.00010989,2]
[360923954,1747149046775,-835.02,0.00010989,2]
[360923955,1747149046785,-400.0,0.00010989,2]
[360923957,1747149046794,-400.0,0.00010989,2]
[360923959,1747149046803,-400.0,0.00010989,2]
[360923961,1747149046815,-828.03,0.00010989,2]
[360923963,1747149046825,-400.0,0.00010989,2]
[360923965,1747149046834,-486.59,0.00010989,2]
[360923967,1747149046843,-406.83,0.00010989,2]
[360923969,1747149046852,-400.0,0.00010989,2]
[360923971,1747149046862,-400.0,0.00010989,2]
[360923973,1747149046871,-640.51,0.00010989,2]
[360923975,1747149046881,-1715.58,0.00010989,2]
[360923977,1747149046890,-400.0,0.00010989,2]
[360923979,1747149046900,-400.0,0.00010989,2]
[360923981,1747149046909,-2840.68,0.00010989,2]
[360923983,1747149046921,-400.0,0.00010989,2]
[360923985,1747149046930,-400.0,0.00010989,2]
[360923987,1747149046940,-400.0,0.00010989,2]
[360923989,1747149046949,-1410.6,0.00010989,2]
[360923991,1747149046959,-400.0,0.00010989,2]
[360923993,1747149046968,-1084.56,0.00010989,2]
[360923995,1747149046978,-392.74939604,0.0001099,2]
[360923997,1747149046989,-400.0,0.0001099,2]
[360923999,1747149046999,-500.0,0.0001099,2]
[360924001,1747149047008,-2130.845,0.00010994,2]
[360924003,1747149047017,-155.469,0.00010994,2]
[360924005,1747149047027,-250.0,0.00010996,2]
[360924007,1747149047036,-1041.1582,0.00010999,2]
[360924009,1747149047045,-500.0,0.00010999,2]
[360924011,1747149047055,-500.0,0.00010999,2]
[360924013,1747149047066,-25211.7870219,0.00010999,2]
[360924015,1747149047075,-35971.3821663,0.00010999,2]
[360924018,1747149047086,-403393.1604855,0.00010999,2]
[360924020,1747149047095,-28779.5946655,0.00010999,2]
[360924022,1747149047105,-150.0,0.00010999,2]
[360924024,1747149047115,-150.0,0.00010999,2]
[360924026,1747149047124,-150.0,0.00010999,2]
[360924028,1747149047135,-150.0,0.00010999,2]
[360924030,1747149047147,-150.0,0.00010999,2]
[360924032,1747149047156,-150.0,0.00010999,2]
[360924034,1747149047165,-150.0,0.00010999,2]
[360924036,1747149047175,-150.0,0.00010999,2]
[360924038,1747149047184,-150.0,0.00010999,2]
[360924040,1747149047194,-150.0,0.00010999,2]
[360924042,1747149047203,-150.0,0.00010999,2]
[360924044,1747149047213,-150.0,0.00010999,2]
[360924046,1747149047222,-150.0,0.00010999,2]
[360924048,1747149047232,-150.0,0.00010999,2]
[360924050,1747149047241,-150.0,0.00010999,2]
[360924052,1747149047251,-150.0,0.00010999,2]
[360924054,1747149047261,-150.0,0.00010999,2]
[360924056,1747149047270,-150.0,0.00010999,2]
[360924058,1747149047281,-150.0,0.00010999,2]
[360924060,1747149047290,-150.0,0.00010999,2]
[360924061,1747149047299,-150.0,0.00010999,2]
[360924062,1747149047311,-150.0,0.00010999,2]
[360924063,1747149047320,-150.0,0.00010999,2]
[360924064,1747149047331,-150.0,0.00010999,2]
[360924065,1747149047341,-150.0,0.00010999,2]
[360924066,1747149047351,-192.26628613,0.00010999,2]
[360924067,1747149047360,-300.0,0.00010999,2]
[360924068,1747149047370,-300.0,0.00010999,2]
[360924069,1747149047381,-300.0,0.00010999,2]
[360924070,1747149047391,-834.0,0.00011,2]
[360924071,1747149047401,-362.96371405,0.00011,2]
[360924072,1747149047411,-96850.1964441,0.00011,2]
[360924073,1747149047421,-1365185.73625295,0.00011,2]
[360924074,1747149047431,-903.28,0.00011,2]
[360924075,1747149047441,-2525046.61304527,0.00011,2]
[360924076,1747149047959,-341103.63892087,0.00011,2]
[360924077,1747149047972,-947.72946,0.00011,2]
[360924078,1747149048283,-1362.21201387,0.00011,2]
[360924079,1747149048295,-2458.29269741,0.00011,2]
[360924080,1747149048308,-336.0581857,0.00011,2]
[360924097,1747149048465,-1195.90434792,0.00011,2]
[360924163,1747149049096,-287.61899177,0.00010951,2]
[360924165,1747149049105,-400.0,0.00010958,2]
[360924166,1747149049114,-483.5510131,0.00011,2]
[360924178,1747149049225,-1276.15,0.00011,2]
[360924180,1747149049236,-1548.0,0.00011,2]
[360924323,1747149050672,-4161.1,0.00011,2]
[360924325,1747149050684,-3779.05073902,0.00011,2]
[360924327,1747149050696,-8268.84185998,0.00011,2]
[360924330,1747149050707,-370416.50402433,0.00011,2]
[360924332,1747149050720,-950.83912032,0.00011,2]
[360924334,1747149050730,-2893.26,0.00011,2]
[360924336,1747149050742,-712677.29863498,0.00011,2]
[360924338,1747149050753,-357151.24558669,0.00011,2]
[360924340,1747149050764,-251.13762837,0.00011,2]
[360924342,1747149050775,-23309.9083952,0.00011,2]
[360924344,1747149050786,-25664.31863327,0.00011,2]
[360924347,1747149050797,-324.2843821,0.00011,2]
[360924689,1747149054926,679.67030233,0.0002,30]
[360924780,1747149069635,866.09754393,0.0002,30]
[360924781,1747149117495,22480.9446085,0.0002,30]
[360924791,1747149351501,200.0,0.00025,60]
[360924792,1747149372095,700.0,0.00027671,120]
[360924793,1747149372367,700.0,0.00027671,120]
[360924794,1747149372625,700.0,0.00027671,120]
[360924795,1747149372884,700.0,0.00027671,120]
[360924796,1747149373144,700.0,0.00027671,120]
[360924797,1747149373419,700.0,0.00027671,120]
[360924798,1747149373658,700.0,0.00027671,120]